bitfinex/quotes_SOLUSD_20250410
["timestamp","ask_amount","ask_price","bid_price","bid_amount"]
[1744257817091,25.67289208,115.54,115.49,25.38856894]
[1744257818191,0.28432314,115.54,115.49,25.38856894]
[1744257818386,34.04316894,115.55,115.5,8.658]
[1744257818708,34.04316894,115.55,115.5,34.04656894]
[1744257819910,8.6546,115.55,115.5,34.04656894]
[1744257821433,34.04316894,115.55,115.5,34.04656894]
[1744257821636,0.28432314,115.54,115.49,25.38856894]
[1744257822113,16.5819,115.56,115.49,25.38856894]
[1744257822320,0.28432314,115.55,115.5,25.38856894]
[1744257822741,7.9282,115.56,115.52,25.38856894]
[1744257822910,7.9282,115.56,115.51,25.38856894]
[1744257823238,7.9282,115.56,115.52,25.38856894]
[1744257823444,0.03,115.56,115.52,8.28]
[1744257823645,0.03,115.56,115.55,24.55745367]
[1744257823808,0.03,115.56,115.55,8.6542]
[1744257824708,0.03,115.56,115.54,24.55785367]
[1744257828541,0.03,115.56,115.53,24.55865367]
[1744257828837,30.76915367,115.54,115.48,105.38325367]
[1744257829030,30.76915367,115.54,115.49,24.56195367]
[1744257829533,14.8659,115.54,115.5,15.90325367]
[1744257830841,14.8659,115.54,115.5,24.56075367]
[1744257831317,6.2103,115.54,115.5,8.6575]
[1744257831634,14.8653,115.54,115.5,24.56075367]
[1744257831842,6.2103,115.54,115.5,24.56075367]
[1744257833940,14.8654,115.54,115.5,24.56075367]
[1744257834920,14.8654,115.54,115.5,8.6575]
[1744257835118,0.28432314,115.53,115.49,15.90325367]
[1744257835443,0.28432314,115.53,115.48,8.28]
[1744257835647,16.18757681,115.51,115.48,8.28]
[1744257836337,0.28432314,115.51,115.48,8.28]
[1744257837245,8.94182314,115.51,115.48,8.28]
[1744257837543,30.58492314,115.51,115.46,0.063]
[1744257837727,0.28432314,115.49,115.46,0.063]
[1744257838246,16.18757681,115.49,115.46,0.063]
[1744257838419,23.77475367,115.48,115.46,0.063]
[1744257838614,7.8715,115.48,115.46,0.063]
[1744257839450,16.5312,115.48,115.46,0.063]
[1744257841240,6.3511,115.48,115.46,0.063]
[1744257841447,7.8715,115.51,115.47,25.48014983]
[1744257841754,7.8715,115.54,115.5,25.48014983]
[1744257841913,7.8715,115.54,115.51,25.48014983]
[1744257842118,0.03,115.56,115.52,25.48014983]
[1744257842319,0.03,115.56,115.53,25.48014983]
[1744257842530,7.0085,115.57,115.54,25.48014983]
[1744257842730,13.15935553,115.58,115.56,25.48014983]
[1744257842941,13.15935553,115.58,115.56,34.13344983]
[1744257843139,13.15935553,115.58,115.56,25.48014983]
[1744257843332,21.81145553,115.58,115.54,8.28]
[1744257843534,21.81145553,115.58,115.54,33.76014983]
[1744257843744,21.81145553,115.58,115.54,8.28]
[1744257843953,25.48014983,115.56,115.51,33.76014983]
[1744257845027,0.28432314,115.57,115.53,25.48014983]
[1744257845546,8.6523,115.58,115.54,25.48014983]
[1744257845931,8.6523,115.58,115.53,25.48014983]
[1744257846129,8.6523,115.58,115.54,25.48014983]
[1744257846344,10.1719,115.59,115.55,25.48014983]
[1744257846652,10.1719,115.59,115.54,25.48014983]
[1744257846853,10.1719,115.59,115.55,25.48014983]
[1744257847149,10.1719,115.59,115.55,34.13404983]
[1744257847719,0.03,115.6,115.56,33.76014983]
[1744257848123,34.16084983,115.6,115.56,8.28]
[1744257848951,34.16084983,115.6,115.56,16.9333]
[1744257849154,8.6807,115.6,115.56,42.41344983]
[1744257850352,8.6807,115.6,115.56,33.76014983]
[1744257852055,0.03,115.6,115.58,25.48014983]
[1744257852255,0.03,115.6,115.57,18.64964886]
[1744257852554,0.03,115.6,115.59,52.78099869]
[1744257852863,0.03,115.61,115.6,18.64964886]
[1744257853069,0.03,115.61,115.6,56.81119547]
[1744257853830,0.03,115.61,115.6,65.46169547]
[1744257856956,0.03,115.61,115.6,33.76014983]
[1744257857362,0.03,115.61,115.6,42.41064983]
[1744257857660,8.0051,115.61,115.56,24.37118332]
[1744257857843,8.0051,115.61,115.54,25.48014983]
[1744257858048,25.48014983,115.6,115.54,25.48014983]
[1744257858440,25.48014983,115.57,115.52,89.48]
[1744257858641,25.48014983,115.56,115.52,8.28]
[1744257859058,8.6542,115.55,115.52,8.28]
[1744257859562,25.48014983,115.54,115.52,8.28]
[1744257860140,34.13434983,115.55,115.52,8.28]
[1744257860434,34.13434983,115.55,115.49,34.13864983]
[1744257860753,34.13434983,115.55,115.5,8.28]
[1744257861159,25.48014983,115.54,115.5,8.28]
[1744257861351,34.13434983,115.55,115.5,16.9379]
[1744257862151,34.13394983,115.56,115.5,42.41804983]
[1744257863441,8.6538,115.56,115.5,42.41804983]
[1744257863646,34.13324983,115.57,115.52,25.48014983]
[1744257865274,34.13324983,115.57,115.52,34.13614983]
[1744257866467,34.13324983,115.57,115.52,8.656]
[1744257868272,34.13324983,115.57,115.51,34.13694983]
[1744257868664,25.48014983,115.56,115.51,34.13694983]
[1744257868850,25.48014983,115.56,115.51,25.48014983]
[1744257869055,30.285,115.57,115.51,25.48014983]
[1744257869366,25.48014983,115.56,115.51,34.13724983]
[1744257869866,25.48014983,115.55,115.5,8.28]
[1744257870070,25.48014983,115.53,115.5,8.28]
[1744257871179,25.48014983,115.53,115.49,16.9186]
[1744257871349,34.13624983,115.53,115.49,16.9186]
[1744257871687,34.13624983,115.53,115.49,16.9187]
[1744257872282,34.13534983,115.54,115.49,42.39884983]
[1744257872464,8.6552,115.54,115.49,42.39884983]
[1744257872974,34.13534983,115.54,115.49,42.39884983]
[1744257875081,8.6552,115.54,115.49,42.39884983]
[1744257876382,8.6552,115.54,115.5,25.48014983]
[1744257876878,34.13534983,115.54,115.49,42.39884983]
[1744257879356,24.56585084,115.54,115.49,32.82935084]
[1744257880986,15.91065084,115.55,115.5,15.91065084]
[1744257881362,8.653,115.57,115.49,38.5655]
[1744257881579,15.91065084,115.58,115.53,15.91065084]
[1744257881765,15.91065084,115.58,115.53,24.19065084]
[1744257882579,15.91065084,115.57,115.53,24.19065084]
[1744257882883,15.91065084,115.57,115.53,8.28]
[1744257883087,24.56375084,115.57,115.53,16.9356]
[1744257883577,8.6531,115.57,115.53,32.84625084]
[1744257884777,100.433972,115.6,115.54,15.91065084]
[1744257884778,8.6505,115.6,115.54,15.91065084]
[1744257885087,24.56115084,115.6,115.55,15.91065084]
[1744257885290,15.91065084,115.59,115.54,15.91065084]
[1744257885866,24.56235084,115.59,115.54,24.56485084]
[1744257890664,8.6517,115.59,115.54,24.56485084]
[1744257890866,24.56235084,115.59,115.54,24.56485084]
[1744257893191,15.91065084,115.57,115.53,8.28]
[1744257893370,15.91065084,115.56,115.53,8.28]
[1744257894187,15.91065084,115.57,115.53,16.9356]
[1744257895087,24.56365084,115.57,115.53,16.9356]
[1744257895681,24.56365084,115.57,115.53,8.28]
[1744257895982,24.56365084,115.57,115.53,16.9356]
[1744257896785,24.56365084,115.57,115.53,8.28]
[1744257897388,24.56365084,115.57,115.53,16.9356]
[1744257898461,15.91065084,115.58,115.53,16.9356]
[1744257899089,15.91065084,115.57,115.53,16.9356]
[1744257900293,15.91065084,115.58,115.53,32.84625084]
[1744257900668,8.6527,115.57,115.53,32.84625084]
[1744257901191,8.6523,115.58,115.53,32.84625084]
[1744257901375,8.6523,115.58,115.54,15.91065084]
[1744257901575,24.56225084,115.59,115.54,15.91065084]
[1744257901890,24.56155084,115.6,115.54,15.91065084]
[1744257902065,24.56155084,115.6,115.55,15.91065084]
[1744257902461,15.91065084,115.59,115.54,18.64964886]
[1744257902690,8.652,115.58,115.54,27.30424886]
[1744257902874,24.56225084,115.59,115.54,27.30424886]
[1744257903074,15.91065084,115.58,115.54,8.6546]
[1744257903475,15.91065084,115.58,115.53,114.04595084]
[1744257904318,15.91065084,115.57,115.53,8.28]
[1744257904614,15.91065084,115.55,115.53,8.28]
[1744257905107,24.56455084,115.56,115.53,8.28]
[1744257908608,24.56455084,115.56,115.5,15.91065084]
[1744257908609,15.91065084,115.55,115.5,15.91065084]
[1744257908779,15.91065084,115.54,115.49,25.84995084]
[1744257909793,30.2876,115.56,115.49,34.50825084]
[1744257910102,15.91065084,115.54,115.49,34.50825084]
[1744257910501,15.91065084,115.54,115.49,18.5976]
[1744257911998,24.56635084,115.53,115.49,8.323]
[1744257912195,24.56635084,115.53,115.49,16.9817]
[1744257912395,24.56595084,115.54,115.49,16.9817]
[1744257912597,15.91065084,115.53,115.49,16.9817]
[1744257912897,8.6553,115.54,115.49,16.9817]
[1744257913094,15.91065084,115.53,115.49,16.9817]
[1744257913404,15.91065084,115.54,115.49,16.9817]
[1744257913700,24.56565084,115.54,115.49,16.9817]
[1744257914606,24.56565084,115.54,115.49,8.323]
[1744257914782,15.91065084,115.53,115.49,8.323]
[1744257915600,8.6565,115.52,115.49,8.323]
[1744257916689,15.91065084,115.51,115.49,8.323]
[1744257917100,8.6565,115.52,115.49,8.323]
[1744257917308,15.91065084,115.51,115.49,8.323]
[1744257917807,24.56845084,115.51,115.49,8.323]
[1744257918387,15.91065084,115.52,115.49,8.323]
[1744257918607,15.91065084,115.53,115.49,8.323]
[1744257918903,15.91065084,115.52,115.49,8.323]
[1744257919409,10.18690847,115.52,115.49,8.323]
[1744257920007,18.84410847,115.51,115.49,8.323]
[1744257921108,8.6572,115.51,115.49,8.323]
[1744257921308,18.84410847,115.51,115.49,8.323]
[1744257921711,8.655,115.54,115.49,27.16860847]
[1744257922017,18.84190847,115.54,115.49,27.16860847]
[1744257923323,24.56788013,115.54,115.49,32.89458013]
[1744257925617,8.655,115.54,115.5,15.91288013]
[1744257926318,8.655,115.54,115.49,8.323]
[1744257926516,15.91288013,115.52,115.49,8.323]
[1744257927021,8.6565,115.52,115.49,24.23588013]
[1744257927392,8.6561,115.53,115.49,32.89448013]
[1744257928124,8.6561,115.53,115.49,24.23588013]
[1744257929026,8.6561,115.53,115.49,32.89458013]
[1744257929225,8.6542,115.55,115.51,15.91288013]
[1744257929526,8.6535,115.56,115.52,15.91288013]
[1744257930907,8.6535,115.56,115.52,24.56898013]
[1744257932528,8.6535,115.56,115.53,1.6642]
[1744257932833,8.6524,115.58,115.54,15.91288013]
[1744257933041,8.6524,115.58,115.54,24.56738013]
[1744257934011,15.91288013,115.58,115.54,24.56738013]
[1744257934419,15.91288013,115.58,115.54,8.6545]
[1744257935428,8.6512,115.59,115.54,8.6545]
[1744257935429,8.6509,115.6,115.54,24.56738013]
[1744257935640,8.6509,115.6,115.55,15.91288013]
[1744257935836,24.56378013,115.6,115.55,15.91288013]
[1744257936240,24.56378013,115.6,115.55,24.56688013]
[1744257937229,8.6801,115.61,115.57,15.91288013]
[1744257937813,15.94288013,115.61,115.57,8.26]
[1744257938212,24.59268013,115.61,115.57,32.82528013]
[1744257938527,8.6798,115.61,115.57,32.82528013]
[1744257938840,24.59268013,115.61,115.57,32.82528013]
[1744257939010,8.6798,115.61,115.57,32.82528013]
[1744257939210,8.6798,115.61,115.57,24.17288013]
[1744257939426,24.59268013,115.61,115.57,24.17288013]
[1744257939817,24.59268013,115.61,115.57,8.26]
[1744257940023,0.03,115.61,115.58,1.6642]
[1744257940229,0.03,115.61,115.6,24.56338013]
[1744257940425,0.03,115.61,115.58,82.8642]
[1744257940623,15.94288013,115.61,115.57,8.26]
[1744257940839,15.91288013,115.6,115.57,8.26]
[1744257941351,15.91288013,115.59,115.55,1.6642]
[1744257942054,15.91288013,115.6,115.55,17.57708013]
[1744257942425,24.56378013,115.6,115.55,26.23128013]
[1744257942633,8.6801,115.61,115.56,15.91288013]
[1744257942948,0.03,115.61,115.59,15.91288013]
[1744257943525,0.03,115.61,115.6,15.91288013]
[1744257944551,0.03,115.61,115.6,23.55708013]
[1744257945259,0.03,115.61,115.58,8.26]
[1744257945641,15.91288013,115.6,115.56,8.26]
[1744257946142,15.94288013,115.61,115.56,24.17288013]
[1744257946862,8.6505,115.6,115.56,32.82618013]
[1744257947064,0.03,115.61,115.57,15.91288013]
[1744257947359,0.03,115.61,115.58,15.91288013]
[1744257947550,0.03,115.61,115.59,15.91288013]
[1744257950056,0.03,115.61,115.58,15.91288013]
[1744257951144,0.03,115.61,115.56,8.26]
[1744257951350,15.94288013,115.61,115.56,24.17288013]
[1744257951551,0.03,115.61,115.56,24.17288013]
[1744257952260,0.03,115.61,115.56,32.82628013]
[1744257952665,0.03,115.61,115.57,15.91288013]
[1744257953045,8.6797,115.61,115.57,15.91288013]
[1744257953367,8.6797,115.61,115.56,16.9134]
[1744257953561,8.6797,115.61,115.57,15.91288013]
[1744257954967,0.03,115.61,115.57,15.91288013]
[1744257955642,0.03,115.61,115.58,15.91288013]
[1744257955842,0.03,115.61,115.59,15.91288013]
[1744257956069,0.03,115.61,115.58,15.91288013]
[1744257956567,0.03,115.61,115.59,15.91288013]
[1744257959074,0.03,115.61,115.57,8.6527]
[1744257959282,0.03,115.61,115.59,15.91288013]
[1744257962775,0.03,115.61,115.59,24.56408013]
[1744257962984,0.03,115.61,115.6,15.91288013]
[1744257963274,0.03,115.61,115.6,32.80338013]
[1744257966680,0.03,115.61,115.6,53.26675213]
[1744257966983,0.03,115.63,115.6,74.89295213]
[1744257967281,0.03,115.63,115.62,34.84685213]
[1744257967598,0.03,115.64,115.62,116.04685213]
[1744257967783,0.03,115.64,115.63,16.19720327]
[1744257968083,0.03,115.64,115.63,24.56108013]
[1744257968583,0.03,115.64,115.63,43.49505213]
[1744257971384,0.03,115.64,115.57,23.149]
[1744257971579,15.94288013,115.64,115.57,10.1704]
[1744257971780,0.03,115.64,115.6,15.91288013]
[1744257972385,0.03,115.64,115.61,15.91288013]
[1744257973016,8.6775,115.64,115.61,15.91288013]
[1744257973807,8.6775,115.64,115.6,8.24]
[1744257974003,15.91288013,115.61,115.56,8.24]
[1744257974191,15.91288013,115.61,115.56,24.15288013]
[1744257974590,15.91288013,115.61,115.56,8.24]
[1744257974798,15.91288013,115.6,115.56,8.24]
[1744257974999,8.6512,115.59,115.56,8.24]
[1744257981511,8.6505,115.6,115.56,8.24]
[1744257982213,8.6505,115.6,115.56,16.8934]
[1744257982414,8.6505,115.6,115.56,32.80628013]
[1744257983405,6.338,115.62,115.57,15.91288013]
[1744257983594,6.338,115.62,115.58,15.91288013]
[1744257983996,6.338,115.62,115.57,15.91288013]
[1744257985001,52.52268013,115.62,115.56,8.24]
[1744257985209,15.91288013,115.61,115.56,24.15288013]
[1744257985518,15.91288013,115.61,115.56,8.24]
[1744257986901,15.91288013,115.61,115.56,24.15288013]
[1744257987229,8.65,115.61,115.57,15.91288013]
[1744257988726,8.65,115.61,115.57,24.56558013]
[1744257990148,14.9872,115.62,115.58,15.91288013]
[1744257991127,14.9872,115.62,115.58,24.56468013]
[1744257991999,26.0,115.58,115.55,0.063]
[1744257992421,15.91288013,115.59,115.55,0.063]
[1744257992922,1.5065,115.61,115.57,15.91288013]
[1744257993126,10.1568,115.61,115.57,15.91288013]
[1744257993322,10.1568,115.61,115.56,15.91288013]
[1744257993908,10.1568,115.61,115.57,15.91288013]
[1744257996335,10.1568,115.61,115.56,24.56608013]
[1744257999038,8.6777,115.64,115.6,15.91288013]
[1744257999240,0.03,115.64,115.63,41.91288013]
[1744257999441,0.03,115.66,115.63,76.7678093]
[1744257999735,0.03,115.66,115.65,10.15356186]
[1744257999935,0.03,115.66,115.65,18.39356186]
[1744258000308,0.03,115.66,115.65,8.24]
[1744258000541,0.03,115.66,115.65,18.39356186]
[1744258000911,0.03,115.66,115.65,27.04026186]
[1744258001333,0.03,115.66,115.65,32.74818904]
[1744258002053,0.03,115.66,115.65,51.68216104]
[1744258003842,0.03,115.66,115.65,32.74818904]
[1744258004142,0.03,115.66,115.65,51.68216104]
[1744258004613,0.03,115.66,115.65,132.88216104]
[1744258006125,0.03,115.68,115.66,18.933972]
[1744258006331,0.03,115.68,115.67,15.86148904]
[1744258006518,0.03,115.68,115.67,34.79546104]
[1744258007045,0.03,115.68,115.67,43.44066104]
[1744258008343,0.03,115.68,115.67,124.64066104]
[1744258011037,0.03,115.7,115.67,146.25386104]
[1744258011349,0.03,115.7,115.69,34.79546104]
[1744258011525,0.03,115.7,115.69,124.21546104]
[1744258012353,0.03,115.71,115.69,420.83546104]
[1744258012530,0.0001,115.71,115.7,43.43846104]
[1744258012857,0.0001,115.71,115.69,8.6434]
[1744258013027,6.4933,115.71,115.66,29.8342]
[1744258013229,6.4933,115.71,115.67,15.86148904]
[1744258013428,6.4933,115.71,115.66,45.69568904]
[1744258013638,6.4933,115.71,115.67,24.50668904]
[1744258014052,6.4933,115.71,115.66,24.08148904]
[1744258014243,22.35478904,115.71,115.66,8.22]
[1744258014753,6.4933,115.71,115.67,15.86148904]
[1744258015443,6.4933,115.71,115.68,15.86148904]
[1744258015953,15.1357,115.71,115.67,15.86148904]
[1744258016149,6.4933,115.71,115.67,15.86148904]
[1744258016758,6.4933,115.71,115.68,15.86148904]
[1744258016955,6.4933,115.71,115.69,15.86148904]
[1744258017159,6.4933,115.71,115.7,8.22]
[1744258019646,15.1355,115.71,115.7,8.22]
[1744258019847,6.4933,115.71,115.7,8.22]
[1744258020757,15.1355,115.71,115.7,8.22]
[1744258020948,30.99698904,115.71,115.7,8.22]
[1744258021150,71.53666104,115.71,115.65,8.22]
[1744258021455,15.86148904,115.67,115.65,8.22]
[1744258021766,17.36558904,115.69,115.65,8.22]
[1744258022563,15.86148904,115.68,115.65,8.22]
[1744258022867,8.6452,115.67,115.65,8.22]
[1744258023850,24.50668904,115.67,115.65,8.22]
[1744258024047,21.88028904,115.66,115.62,296.56]
[1744258024376,15.86148904,115.65,115.61,8.22]
[1744258024746,6.0188,115.66,115.6,0.063]
[1744258024747,8.6482,115.63,115.6,0.063]
[1744258024952,17.36558904,115.62,115.6,0.063]
[1744258025165,15.86148904,115.61,115.6,0.063]
[1744258025673,34.79546104,115.61,115.6,0.063]
[1744258025979,18.933972,115.6,115.55,0.063]
[1744258026275,15.86148904,115.58,115.55,0.063]
[1744258026782,8.6527,115.57,115.55,0.063]
[1744258027156,6.0188,115.61,115.56,24.08148904]
[1744258027376,6.0188,115.61,115.58,25.42224038]
[1744258027877,6.0188,115.61,115.57,25.42224038]
[1744258028046,40.09094038,115.61,115.56,8.22]
[1744258028560,40.09094038,115.61,115.56,33.64224038]
[1744258028760,14.6687,115.61,115.56,33.64224038]
[1744258029076,14.6685,115.61,115.56,33.64224038]
[1744258029452,14.6685,115.61,115.56,42.29574038]
[1744258029880,14.6685,115.61,115.57,25.42224038]
[1744258030772,14.6685,115.61,115.57,34.07494038]
[1744258031076,14.6685,115.61,115.56,33.64224038]
[1744258031378,25.42224038,115.6,115.56,8.22]
[1744258031547,25.42224038,115.59,115.56,8.22]
[1744258032150,25.42224038,115.6,115.56,8.22]
[1744258033076,34.07344038,115.59,115.56,8.22]
[1744258033874,34.07344038,115.59,115.55,0.063]
[1744258034466,34.07294038,115.6,115.55,25.48524038]
[1744258035475,34.07294038,115.6,115.55,0.063]
[1744258035676,25.42224038,115.59,115.55,0.063]
[1744258036262,34.07294038,115.6,115.55,8.7171]
[1744258036480,34.07294038,115.6,115.55,34.13934038]
[1744258037361,106.452772,115.61,115.55,8.7171]
[1744258037362,6.0188,115.61,115.55,8.7171]
[1744258037679,6.1189,115.64,115.6,25.42224038]
[1744258037883,6.1189,115.64,115.61,33.64224038]
[1744258038177,6.1189,115.64,115.62,25.42224038]
[1744258038378,6.1189,115.64,115.63,25.42224038]
[1744258038577,0.3631479,115.65,115.63,25.42224038]
[1744258039370,0.3631479,115.65,115.63,34.07024038]
[1744258040164,0.3631479,115.65,115.63,25.42224038]
[1744258040369,0.3631479,115.65,115.62,34.07084038]
[1744258042986,0.3631479,115.65,115.63,25.42224038]
[1744258044460,0.3631479,115.65,115.62,34.07084038]
[1744258045887,0.3631479,115.65,115.61,33.64224038]
[1744258045888,9.0100479,115.65,115.61,33.64224038]
[1744258046895,9.0100479,115.65,115.61,25.42224038]
[1744258047074,9.0100479,115.65,115.61,8.22]
[1744258048197,9.0100479,115.65,115.61,24.10119433]
[1744258048501,9.0100479,115.65,115.61,32.75089433]
[1744258048875,9.0100479,115.65,115.61,24.10119433]
[1744258050224,9.0100479,115.65,115.61,32.75089433]
[1744258050401,9.0099479,115.65,115.61,24.10119433]
[1744258051505,9.0099479,115.65,115.61,32.75089433]
[1744258052195,9.0099479,115.65,115.61,24.10119433]
[1744258052810,9.0099479,115.65,115.61,8.22]
[1744258052982,15.88119433,115.64,115.61,8.22]
[1744258053383,0.3631479,115.65,115.61,24.10119433]
[1744258053583,9.0099479,115.65,115.61,32.75079433]
[1744258054882,24.89114223,115.65,115.61,8.22]
[1744258055075,24.89114223,115.65,115.59,15.88119433]
[1744258055307,46.50804223,115.65,115.59,24.10119433]
[1744258055810,46.50804223,115.65,115.59,15.88119433]
[1744258055983,46.50804223,115.65,115.59,24.10119433]
[1744258056712,46.50804223,115.65,115.59,15.88119433]
[1744258057219,46.50804223,115.65,115.59,24.10119433]
[1744258057500,46.50804223,115.65,115.6,15.88119433]
[1744258057910,46.50804223,115.65,115.58,0.063]
[1744258057911,26.0,115.6,115.58,0.063]
[1744258058090,15.88119433,115.59,115.58,0.063]
[1744258058698,24.53239433,115.59,115.58,0.063]
[1744258059011,8.6512,115.59,115.58,0.063]
[1744258061213,1.5918,115.58,115.55,0.063]
[1744258061400,17.47299433,115.58,115.55,0.063]
[1744258062403,1.5918,115.58,115.55,0.063]
[1744258062907,8.6527,115.57,115.55,0.063]
[1744258066906,15.88119433,115.56,115.55,0.063]
[1744258067835,34.81516633,115.56,115.55,0.063]
[1744258068012,41.29636633,115.56,115.55,0.063]
[1744258068337,22.36239433,115.56,115.55,0.063]
[1744258068832,31.01589433,115.56,115.55,0.063]
[1744258069325,15.1347,115.56,115.55,0.063]
[1744258071835,31.01589433,115.56,115.55,0.063]
[1744258072335,49.94986633,115.56,115.55,0.063]
[1744258080262,49.94986633,115.56,115.53,0.063]
[1744258080263,44.933972,115.54,115.53,0.063]
[1744258080413,60.81516633,115.54,115.53,0.063]
[1744258080839,8.00832314,115.52,115.51,0.0001]
[1744258081024,42.53916633,115.52,115.5,0.0001]
[1744258081232,15.88119433,115.51,115.5,0.0001]
[1744258081613,23.60519433,115.52,115.5,0.0001]
[1744258081813,26.37364886,115.52,115.5,0.0001]
[1744258082018,8.6572,115.51,115.5,0.0001]
[1744258083152,43.47236633,115.51,115.5,0.0001]
[1744258085054,18.933972,115.5,115.48,0.0001]
[1744258085232,24.53989433,115.49,115.48,0.0001]
[1744258086552,26.0,115.47,115.46,0.063]
[1744258086732,69.03916633,115.47,115.45,0.0001]
[1744258087058,116.31516633,115.46,115.45,0.0001]
[1744258087228,109.094972,115.46,115.45,0.0001]
[1744258087555,124.97616633,115.46,115.45,0.0001]
[1744258088252,34.81516633,115.45,115.44,0.0001]
[1744258088556,18.933972,115.44,115.43,0.0001]
[1744258088745,20.571772,115.42,115.41,0.0001]
[1744258088946,44.933972,115.39,115.36,0.063]
[1744258089154,60.81516633,115.39,115.36,0.063]
[1744258089466,69.48136633,115.39,115.36,0.063]
[1744258089626,15.88119433,115.38,115.36,0.063]
[1744258090025,34.81516633,115.38,115.36,0.063]
[1744258090333,15.88119433,115.38,115.36,0.063]
[1744258091767,18.933972,115.41,115.36,15.94419433]
[1744258092056,34.81516633,115.41,115.36,15.94419433]
[1744258092267,24.10119433,115.42,115.37,15.94419433]
[1744258092562,15.88119433,115.42,115.38,15.88119433]
[1744258093064,24.54519433,115.42,115.38,15.88119433]
[1744258093663,24.54519433,115.42,115.37,24.61159433]
[1744258093836,21.96739433,115.43,115.38,15.88119433]
[1744258095262,31.59572733,115.43,115.38,25.50952733]
[1744258095440,31.59572733,115.43,115.39,8.6662]
[1744258095765,40.25902733,115.43,115.38,34.17622733]
[1744258097066,53.10609933,115.44,115.38,34.17622733]
[1744258097245,18.933972,115.43,115.38,34.17622733]
[1744258097442,44.44349933,115.43,115.38,34.17622733]
[1744258098269,53.10699933,115.43,115.38,34.17622733]
[1744258099145,25.50952733,115.42,115.37,10.3418]
[1744258099353,25.50952733,115.42,115.37,35.85132733]
[1744258100660,27.597472,115.43,115.38,26.24069625]
[1744258100865,53.83816825,115.43,115.38,26.24069625]
[1744258101175,53.83816825,115.43,115.37,10.3418]
[1744258101475,34.90419625,115.43,115.38,34.90709625]
[1744258102803,26.24069625,115.43,115.38,34.90709625]
[1744258102985,34.90339625,115.44,115.39,26.24069625]
[1744258103787,26.24069625,115.43,115.37,1.6744]
[1744258104070,26.24069625,115.4,115.37,1.6744]
[1744258104265,26.24069625,115.4,115.37,0.063]
[1744258104574,52.24069625,115.4,115.37,0.063]
[1744258105861,60.90689625,115.4,115.37,0.063]
[1744258106475,18.933972,115.39,115.37,0.063]
[1744258106697,26.24069625,115.38,115.37,0.063]
[1744258106864,1.5207,115.37,115.36,0.063]
[1744258107069,18.933972,115.36,115.33,0.063]
[1744258107264,45.17466825,115.34,115.33,0.063]
[1744258108171,53.84466825,115.34,115.33,0.063]
[1744258108893,26.24069625,115.34,115.33,0.063]
[1744258109192,45.17466825,115.34,115.33,0.063]
[1744258109801,126.67466825,115.34,115.33,0.063]
[1744258110313,135.34466825,115.34,115.33,0.063]
[1744258110896,53.84466825,115.34,115.33,0.063]
[1744258117306,18.933972,115.33,115.32,0.063]
[1744258117882,35.36888701,115.33,115.32,0.063]
[1744258118099,43.60888701,115.33,115.32,0.063]
[1744258118300,43.60888701,115.33,115.25,0.063]
[1744258118301,0.28432314,115.31,115.25,0.063]
[1744258118476,42.43491501,115.29,115.25,0.063]
[1744258118987,0.28432314,115.31,115.25,0.063]
[1744258118988,26.0,115.3,115.25,16.49791501]
[1744258119183,42.43491501,115.3,115.25,16.49791501]
[1744258119711,51.10821501,115.3,115.25,25.17451501]
[1744258120808,51.10821501,115.3,115.25,8.7396]
[1744258121013,51.10821501,115.3,115.25,16.49791501]
[1744258121720,51.10821501,115.3,115.25,0.063]
[1744258121910,51.10821501,115.3,115.25,16.49791501]
[1744258122113,18.933972,115.29,115.25,16.49791501]
[1744258122816,35.36888701,115.29,115.25,0.063]
[1744258123026,44.04338701,115.29,115.25,0.063]
[1744258125599,25.10941501,115.29,115.25,0.063]
[1744258125799,103.1792,115.32,115.25,0.063]
[1744258125998,43.89892544,115.31,115.26,16.43491501]
[1744258126599,16.43491501,115.3,115.25,16.49791501]
[1744258127720,25.10831501,115.3,115.25,25.17391501]
[1744258129723,25.10831501,115.3,115.25,0.063]